{"text_format":"3","workbook":"xlsx","n_sheets":2,"sheets":["VA_NVA","RA"],"not_rendered":{"images":2},"read":"whole","date_system":"1900"}

{"sheet":"VA_NVA","index":0,"n_rows":35,"n_cols":14,"rows_kept":35,"merged":[[14,6,15,11]]}
["Berechnung der freier verfügbarer Mitteln für den VA/NVA"]
["BUK"]
[]
["HÜL 2.0","Vergleichsversion z.B. 130 eintragen und Layout (siehe unten) auswählen",{"$nulls":11},"Link zu FAQ 11.5: Frei verfügbare Budgetmittel im Gemeindehaushalt"]
[{"$nulls":13},"https://www.verwaltung.steiermark.at/cms/dokumente/12767171_155984677/da53d244/FAQ%2011.5%20Frei%20verf%C3%BCgbare%20Budgetmittel.pdf"]
["Layout",{"$nulls":5},850000,851000,852000,853000]
["/VA_VER_S1","Summe FVA Vgl. Ges.",{"$nulls":3},"Fonds filtern",{"$nulls":4},"Vorzeichen vertauschen"]
["/VA_VER_TZ","Summe FVA Vgl. Ges.",{"$nulls":3},"Fonds filtern"]
["/VA_VER_TI","Summe FVA Vgl. Ges.",{"$nulls":3},"Fonds filtern"]
["/VA_VER_TI_I","Summe FVA Vgl. Ges.",{"$nulls":3},"Fonds filtern"]
["/VA_VER_KTZ","Summe FVA Vgl. Ges.",{"$nulls":3},"Fonds filtern"]
["/VA_VER_KTZO","Summe FVA Vgl. Ges.",{"$nulls":3},"Fonds filtern"]
[null,"Freie verfügb. Mittel",{"$f":"C7+C8-C9-C10-C11-C12","v":{"v":0,"d":"0.00"}},{"$f":"G14+H14+I14+J14","v":{"v":0,"d":"0.00"}},"Abz. BMT","Ergebnis BMT",{"$f":"G7+G8-G9-G10-G11-G12","v":{"v":0,"d":"0.00"}},{"$f":"H7+H8-H9-H10-H11-H12","v":{"v":0,"d":"0.00"}},{"$f":"I7+I8-I9-I10-I11-I12","v":{"v":0,"d":"0.00"}},{"$f":"J7+J8-J9-J10-J11-J12","v":{"v":0,"d":"0.00"}},"Wenn Wert postiv vom"]
[{"$nulls":3},{"$f":"C13-D13","v":{"v":0,"d":"0.00"}},null,"Positiver Wert",{"$f":"IF(G13>0,G13,0)","v":{"v":0,"d":"0.00"}},{"$f":"IF(H13>0,H13,0)","v":{"v":0,"d":"0.00"}},{"$f":"IF(I13>0,I13,0)","v":{"v":0,"d":"0.00"}},{"$f":"IF(J13>0,J13,0)","v":{"v":0,"d":"0.00"}},"Kernhaushalt abziehen"]
["Wenn Positiv kann der Betrag über 799/899 ansatzrein zugeführt werden",{"$nulls":5},"Wenn der gesamte Kernhaushalt negativ ist, ein Betrieb aber positiv, dann können etwaige Projekte für den Betrieb über 850,851…/799/899 bedeckt werden"]
{"$rows_empty":7}
["Der Kernhaushalt ist zuerst für den Gesamthaushalt zu berechnen."]
[]
["SA1 – 361 – BZ (871-871999 ohne 871120)"]
[]
["Dann ist bei den marktbestimmten Betrieben der Kernhaushalt zu berechnen."]
[]
["SA 1 im Bereich 850, 851, 852, 853,…  minus 361"]
[]
["BZ Mittel gibt es normalerweise bei den BMT nicht."]
[]
["Danach sind positive Werte vom gesamten Kernhaushalt abzuziehen. Wenn der gesamte Kernhaushalt negativ ist, ein Betrieb aber positiv, dann können etwaige Projekte für den Betrieb über 850,851…/729900/829900 bedeckt werden."]
[]
["Ob negative Werte aus einen Betrieb zum Gesamtergebnis dazugezählt werden dürfen, ist derzeit noch nicht klar. Heli fragt bei Herrn Spreitzer nach."]

{"sheet":"RA","index":1,"n_rows":32,"n_cols":11,"rows_kept":32,"merged":[[11,6,12,11]]}
["Berechnung der freier verfügbarer Mitteln für den RA"]
["BUK"]
[]
["HÜL 2.0"]
[]
["Layout",{"$nulls":5},850000,851000,852000,853000]
["/S1_FVM_STMK","Summe FRA/bezahlt",{"$nulls":3},"Fonds filtern",{"$nulls":4},"Vorzeichen vertauschen"]
["/TZ_FVM_STMK","Summe FRA/bezahlt",{"$nulls":3},"Fonds filtern"]
["/TI_FVM_STMK","Summe FRA/bezahlt",{"$nulls":3},"Fonds filtern"]
[null,"Freie verfügb. Mittel",{"$f":"C7+C8-C9","v":{"v":0,"d":"0.00"}},{"$f":"G11+H11+I11+J11","v":{"v":0,"d":"0.00"}},"Abz. BMT","Ergebnis BMT",{"$f":"G7+G8-G9","v":{"v":0,"d":"0.00"}},{"$f":"H7+H8-H9","v":{"v":0,"d":"0.00"}},{"v":0,"d":"0.00"},{"v":0,"d":"0.00"},"Wenn Wert postiv vom"]
[{"$nulls":3},{"$f":"C10-D10","v":{"v":0,"d":"0.00"}},null,"Positiver Wert",{"$f":"IF(G10>0,G10,0)","v":{"v":0,"d":"0.00"}},{"$f":"IF(H10>0,H10,0)","v":{"v":0,"d":"0.00"}},{"$f":"IF(I10>0,I10,0)","v":{"v":0,"d":"0.00"}},{"$f":"IF(J10>0,J10,0)","v":{"v":0,"d":"0.00"}},"Kernhaushalt abziehen"]
["Wenn Positiv kann der Betrag über 729900/829900 Ansatzrein zugeführt werden",{"$nulls":5},"Wenn der gesamte Kernhaushalt negativ ist, ein Betrieb aber positiv, dann können etwaige Projekte für den Betrieb über 850,851…/729900/829900 bedeckt werden"]
{"$rows_empty":7}
["Der Kernhaushalt ist zuerst für den Gesamthaushalt zu berechnen."]
[]
["SA1 – 361 – BZ (871-871999 ohne 871120)"]
[]
["Dann ist bei den marktbestimmten Betrieben der Kernhaushalt zu berechnen."]
[]
["SA 1 im Bereich 850, 851, 852, 853,…  minus 361"]
[]
["BZ Mittel gibt es normalerweise bei den BMT nicht."]
[]
["Danach sind positive Werte vom gesamten Kernhaushalt abzuziehen. Wenn der gesamte Kernhaushalt negativ ist, ein Betrieb aber positiv, dann können etwaige Projekte für den Betrieb über 850,851…/729900/829900 bedeckt werden."]
[]
["Ob negative Werte aus einen Betrieb zum Gesamtergebnis dazugezählt werden dürfen, ist derzeit noch nicht klar. Heli fragt bei Herrn Spreitzer nach."]